[Event "*** Titled Tuesday Blitz"]
[Site "Chess.com"]
[Date "2020.04.21"]
[Round "7"]
[White "SamuelGhimpu2003"]
[Black "Natalya_Buksa"]
[Result "1-0"]
[WhiteElo "2675"]
[BlackElo "2483"]
[TimeControl "180+1"]
[EndTime "11:20:16 PDT"]
[Termination "SamuelGhimpu2003 won by resignation"]

1. Nf3 {[%clk 0:02:58.4]} 1... d5 {[%clk 0:02:59.7]} 2. d4 {[%clk 0:02:56.9]}
2... e6 {[%clk 0:03:00.6]} 3. c4 {[%clk 0:02:55.5]} 3... Nf6 {[%clk 0:03:01.5]}
4. g3 {[%clk 0:02:55.2]} 4... Be7 {[%clk 0:03:00.9]} 5. Bg2 {[%clk 0:02:55.8]}
5... O-O {[%clk 0:02:56.3]} 6. Nc3 {[%clk 0:02:55.1]} 6... b6 {[%clk 0:02:54.9]}
7. O-O {[%clk 0:02:47.6]} 7... Bb7 {[%clk 0:02:54.9]} 8. cxd5 {[%clk 0:02:47.2]}
8... exd5 {[%clk 0:02:49.7]} 9. Ne5 {[%clk 0:02:46.3]} 9... Nbd7 {[%clk
0:02:49.2]} 10. Qa4 {[%clk 0:02:43.3]} 10... c5 {[%clk 0:02:43.7]} 11. Nxd7
{[%clk 0:02:34.3]} 11... Nxd7 {[%clk 0:02:40.4]} 12. Nxd5 {[%clk 0:02:32.7]}
12... Rb8 {[%clk 0:02:14.6]} 13. Bf4 {[%clk 0:02:28]} 13... Bxd5 {[%clk
0:02:08.8]} 14. Bxd5 {[%clk 0:02:28.9]} 14... b5 {[%clk 0:02:01.7]} 15. Qxa7
{[%clk 0:02:08.3]} 15... Rc8 {[%clk 0:01:59.5]} 16. Bb7 {[%clk 0:02:07.8]} 16...
Rc7 {[%clk 0:01:57.6]} 17. Bxc7 {[%clk 0:02:00.9]} 17... Qxc7 {[%clk 0:01:58.5]}
18. Qa6 {[%clk 0:02:01.8]} 18... cxd4 {[%clk 0:01:51.2]} 19. Qc6 {[%clk
0:01:59]} 19... Qd8 {[%clk 0:01:43]} 20. Qxb5 {[%clk 0:01:57.9]} 20... Nc5
{[%clk 0:01:43.2]} 21. Bf3 {[%clk 0:01:54.5]} 21... Qd6 {[%clk 0:01:36.6]} 22.
a4 {[%clk 0:01:53.5]} 22... Rb8 {[%clk 0:01:35.6]} 23. Qc6 {[%clk 0:01:51.8]}
23... Qe5 {[%clk 0:01:30.9]} 24. a5 {[%clk 0:01:50.2]} 24... Nb3 {[%clk
0:01:23.6]} 25. a6 {[%clk 0:01:48.1]} 25... Nxa1 {[%clk 0:01:21.7]} 26. a7
{[%clk 0:01:48.2]} 26... Nb3 {[%clk 0:01:11.8]} 27. axb8=Q+ {[%clk 0:01:39.4]}
27... Qxb8 {[%clk 0:01:12.7]} 28. Qa8 {[%clk 0:01:27.4]} 28... Qxa8 {[%clk
0:01:10.1]} 29. Bxa8 {[%clk 0:01:28.3]} 29... Bb4 {[%clk 0:00:54]} 30. Bd5
{[%clk 0:01:25.2]} 30... Nc5 {[%clk 0:00:48]} 31. Rc1 {[%clk 0:01:25.4]} 31...
Kf8 {[%clk 0:00:44]} 32. Rc4 {[%clk 0:01:24.7]} 32... Na6 {[%clk 0:00:44]} 33.
Bb7 {[%clk 0:01:22.6]} 33... Nc5 {[%clk 0:00:41.3]} 34. Rxb4 {[%clk 0:01:21]}
1-0

[Event "*** Titled Tuesday Blitz"]
[Site "Chess.com"]
[Date "2020.04.21"]
[Round "7"]
[White "SaguriGuerra"]
[Black "zmeeed67"]
[Result "1-0"]
[WhiteElo "2534"]
[BlackElo "2382"]
[TimeControl "180+1"]
[EndTime "11:20:17 PDT"]
[Termination "SaguriGuerra won by resignation"]

1. e4 {[%clk 0:02:59.1]} 1... Nc6 {[%clk 0:02:59.8]} 2. Nf3 {[%clk 0:02:58.4]}
2... d6 {[%clk 0:03:00.3]} 3. d4 {[%clk 0:02:58.4]} 3... Nf6 {[%clk 0:03:00.8]}
4. Nc3 {[%clk 0:02:58.8]} 4... Bg4 {[%clk 0:03:01.1]} 5. Be3 {[%clk 0:02:57]}
5... g6 {[%clk 0:03:01.3]} 6. Be2 {[%clk 0:02:55.1]} 6... Bg7 {[%clk 0:03:01]}
7. O-O {[%clk 0:02:54.8]} 7... O-O {[%clk 0:03:01.1]} 8. d5 {[%clk 0:02:53.3]}
8... Nb8 {[%clk 0:03:00.5]} 9. h3 {[%clk 0:02:52]} 9... Bxf3 {[%clk 0:03:00.5]}
10. Bxf3 {[%clk 0:02:52.9]} 10... c6 {[%clk 0:03:00.8]} 11. Re1 {[%clk
0:02:52.4]} 11... cxd5 {[%clk 0:03:01.1]} 12. exd5 {[%clk 0:02:52.4]} 12... Nbd7
{[%clk 0:03:01.6]} 13. Bd4 {[%clk 0:02:52.7]} 13... Re8 {[%clk 0:03:00.6]} 14.
Qd2 {[%clk 0:02:52.6]} 14... a6 {[%clk 0:02:59.6]} 15. a4 {[%clk 0:02:51.4]}
15... Rc8 {[%clk 0:02:59.4]} 16. Re3 {[%clk 0:02:47.5]} 16... Nc5 {[%clk
0:02:21.2]} 17. Re2 {[%clk 0:02:42.6]} 17... Qa5 {[%clk 0:02:10.4]} 18. Rae1
{[%clk 0:02:21.9]} 18... Kf8 {[%clk 0:02:10.5]} 19. Bg4 {[%clk 0:02:02.3]} 19...
Rc7 {[%clk 0:02:02.8]} 20. Qf4 {[%clk 0:01:50.2]} 20... b5 {[%clk 0:01:02.9]}
21. axb5 {[%clk 0:01:48.6]} 21... axb5 {[%clk 0:00:55.2]} 22. Bxf6 {[%clk
0:01:48.4]} 22... Bxf6 {[%clk 0:00:52.2]} 23. b4 {[%clk 0:01:46.6]} 23... Qa6
{[%clk 0:00:39.7]} 24. bxc5 {[%clk 0:01:46.3]} 24... Bxc3 {[%clk 0:00:38.5]} 25.
cxd6 {[%clk 0:01:46.6]} 25... Rc4 {[%clk 0:00:25.7]} 26. Qh6+ {[%clk 0:01:41.1]}
26... Bg7 {[%clk 0:00:21]} 27. Qxh7 {[%clk 0:01:37.7]} 27... Qxd6 {[%clk
0:00:20.4]} 28. Bf3 {[%clk 0:01:31.7]} 28... Rxc2 {[%clk 0:00:18]} 29. Rxc2
{[%clk 0:01:29.3]} 1-0

[Event "*** Titled Tuesday Blitz"]
[Site "Chess.com"]
[Date "2020.04.21"]
[Round "7"]
[White "Sjakkerntobi"]
[Black "reniite"]
[Result "0-1"]
[WhiteElo "2187"]
[BlackElo "1952"]
[TimeControl "180+1"]
[EndTime "11:20:21 PDT"]
[Termination "reniite won by resignation"]

1. e4 {[%clk 0:03:00.9]} 1... e5 {[%clk 0:02:56.9]} 2. Nf3 {[%clk 0:03:01.2]}
2... Nf6 {[%clk 0:02:42.9]} 3. Nxe5 {[%clk 0:03:01.6]} 3... d6 {[%clk
0:02:42.7]} 4. Nf3 {[%clk 0:03:00.9]} 4... Nxe4 {[%clk 0:02:42.9]} 5. d3 {[%clk
0:03:00.9]} 5... Nf6 {[%clk 0:02:42.8]} 6. d4 {[%clk 0:03:01.2]} 6... d5 {[%clk
0:02:43.3]} 7. c4 {[%clk 0:03:02.1]} 7... Bb4+ {[%clk 0:02:30.8]} 8. Nc3 {[%clk
0:03:01]} 8... O-O {[%clk 0:02:29.1]} 9. Be2 {[%clk 0:03:01]} 9... Bf5 {[%clk
0:02:26.2]} 10. O-O {[%clk 0:03:01.1]} 10... Nc6 {[%clk 0:02:24]} 11. Ne5 {[%clk
0:03:00.3]} 11... dxc4 {[%clk 0:02:09.4]} 12. Nxc6 {[%clk 0:02:59.2]} 12... bxc6
{[%clk 0:02:09.8]} 13. Bf3 {[%clk 0:02:59.4]} 13... Nd5 {[%clk 0:02:04.3]} 14.
Bd2 {[%clk 0:02:59.5]} 14... a5 {[%clk 0:01:50]} 15. a3 {[%clk 0:02:58.1]} 15...
Bxc3 {[%clk 0:01:49.5]} 16. bxc3 {[%clk 0:02:59]} 16... Bd3 {[%clk 0:01:44.6]}
17. Re1 {[%clk 0:02:59.1]} 17... Rb8 {[%clk 0:01:41.5]} 18. Qa4 {[%clk
0:02:58.1]} 18... Qd6 {[%clk 0:01:29.7]} 19. Bg5 {[%clk 0:02:34.7]} 19... f6
{[%clk 0:01:19.7]} 20. Bh4 {[%clk 0:02:34.5]} 20... Rb5 {[%clk 0:01:18.6]} 21.
Bg3 {[%clk 0:02:33.8]} 21... Qd7 {[%clk 0:01:10.7]} 22. h3 {[%clk 0:02:19.4]}
22... Nxc3 {[%clk 0:01:08.7]} 23. Qxb5 {[%clk 0:02:01.8]} 23... cxb5 {[%clk
0:01:07]} 24. Rac1 {[%clk 0:02:00.4]} 24... b4 {[%clk 0:01:05.7]} 25. axb4
{[%clk 0:02:00.5]} 25... axb4 {[%clk 0:01:06]} 26. Bg4 {[%clk 0:01:59.3]} 26...
Qxd4 {[%clk 0:01:01.1]} 27. Bxc7 {[%clk 0:01:55.1]} 27... b3 {[%clk 0:00:44.6]}
28. Be6+ {[%clk 0:01:53]} 28... Kh8 {[%clk 0:00:43.9]} 29. Ba5 {[%clk
0:01:53.4]} 29... Ne2+ {[%clk 0:00:43.1]} 30. Kh1 {[%clk 0:01:52.1]} 30... Nxc1
{[%clk 0:00:43]} 31. Rxc1 {[%clk 0:01:52.3]} 31... b2 {[%clk 0:00:43.5]} 32. Re1
{[%clk 0:01:51.9]} 32... b1=Q {[%clk 0:00:43.1]} 33. h4 {[%clk 0:01:51.2]} 33...
Qxe1+ {[%clk 0:00:42.6]} 34. Bxe1 {[%clk 0:01:50.9]} 34... c3 {[%clk 0:00:43]}
35. h5 {[%clk 0:01:49.2]} 35... Qh4+ {[%clk 0:00:42.9]} 36. Kg1 {[%clk 0:01:49]}
36... Be4 {[%clk 0:00:42.9]} 37. Bf7 {[%clk 0:01:49.5]} 37... Rxf7 {[%clk
0:00:42.5]} 38. f3 {[%clk 0:01:50.1]} 38... Qxe1+ {[%clk 0:00:40.8]} 39. Kh2
{[%clk 0:01:50.3]} 39... Bxf3 {[%clk 0:00:41.4]} 40. h6 {[%clk 0:01:51.2]} 40...
gxh6 {[%clk 0:00:41.4]} 41. gxf3 {[%clk 0:01:51.5]} 41... Qh4+ {[%clk 0:00:41]}
42. Kg2 {[%clk 0:01:51.3]} 42... Rg7+ {[%clk 0:00:39.5]} 43. Kf1 {[%clk
0:01:51.6]} 43... Qh2 {[%clk 0:00:36.1]} 0-1

[Event "*** Titled Tuesday Blitz"]
[Site "Chess.com"]
[Date "2020.04.21"]
[Round "7"]
[White "zajka-molotok"]
[Black "GmSergioBarrientos"]
[Result "0-1"]
[WhiteElo "2406"]
[BlackElo "2568"]
[TimeControl "180+1"]
[EndTime "11:20:25 PDT"]
[Termination "GmSergioBarrientos won by resignation"]

1. d4 {[%clk 0:03:00.9]} 1... Nf6 {[%clk 0:02:59]} 2. c4 {[%clk 0:03:00.9]} 2...
e6 {[%clk 0:02:57.9]} 3. Nc3 {[%clk 0:03:01]} 3... Bb4 {[%clk 0:02:57.9]} 4. e3
{[%clk 0:03:01.3]} 4... c5 {[%clk 0:02:52.1]} 5. Bd3 {[%clk 0:02:48.7]} 5... d5
{[%clk 0:02:47.8]} 6. Nf3 {[%clk 0:02:47.3]} 6... dxc4 {[%clk 0:02:45.8]} 7.
Bxc4 {[%clk 0:02:46.8]} 7... Nbd7 {[%clk 0:02:46]} 8. O-O {[%clk 0:02:45.6]}
8... b6 {[%clk 0:02:43.4]} 9. Nb5 {[%clk 0:02:32.3]} 9... cxd4 {[%clk
0:02:39.3]} 10. exd4 {[%clk 0:02:22.9]} 10... Bb7 {[%clk 0:02:36]} 11. Bf4
{[%clk 0:02:20.9]} 11... O-O {[%clk 0:02:31.1]} 12. Nd6 {[%clk 0:01:58.3]} 12...
Bd5 {[%clk 0:02:20.1]} 13. Ba6 {[%clk 0:01:34.6]} 13... Qe7 {[%clk 0:02:11.6]}
14. Nb5 {[%clk 0:01:25.7]} 14... Bc4 {[%clk 0:02:08.8]} 15. a3 {[%clk 0:01:21]}
15... Nd5 {[%clk 0:01:46.3]} 16. Bg3 {[%clk 0:01:12.6]} 16... Bxb5 {[%clk
0:01:13.2]} 17. Bxb5 {[%clk 0:01:10.3]} 17... Bd6 {[%clk 0:01:13.4]} 18. Ne5
{[%clk 0:01:01]} 18... N7f6 {[%clk 0:01:10.6]} 19. Rc1 {[%clk 0:00:54.9]} 19...
Rfc8 {[%clk 0:01:04.1]} 20. Bc6 {[%clk 0:00:42.8]} 20... Rab8 {[%clk 0:00:55]}
21. Bxd5 {[%clk 0:00:42]} 21... Bxe5 {[%clk 0:00:49.4]} 22. Bxe5 {[%clk
0:00:39.5]} 22... Nxd5 {[%clk 0:00:49.2]} 23. Bc7 {[%clk 0:00:39.5]} 23... Rxc7
{[%clk 0:00:48.3]} 0-1

[Event "*** Titled Tuesday Blitz"]
[Site "Chess.com"]
[Date "2020.04.21"]
[Round "7"]
[White "exoticprincess"]
[Black "Rud_Makarian"]
[Result "1-0"]
[WhiteElo "2865"]
[BlackElo "2651"]
[TimeControl "180+1"]
[EndTime "11:20:27 PDT"]
[Termination "exoticprincess won on time"]

1. d4 {[%clk 0:02:52.3]} 1... Nf6 {[%clk 0:02:59.7]} 2. c4 {[%clk 0:02:50.4]}
2... e6 {[%clk 0:02:58.7]} 3. Nc3 {[%clk 0:02:50.8]} 3... Bb4 {[%clk 0:02:58.3]}
4. e3 {[%clk 0:02:51.5]} 4... O-O {[%clk 0:02:58.3]} 5. Bd3 {[%clk 0:02:52.2]}
5... d5 {[%clk 0:02:57.7]} 6. cxd5 {[%clk 0:02:53.1]} 6... exd5 {[%clk
0:02:57.5]} 7. Ne2 {[%clk 0:02:54]} 7... Re8 {[%clk 0:02:53.8]} 8. Bd2 {[%clk
0:02:54.1]} 8... Nbd7 {[%clk 0:02:52.1]} 9. Rc1 {[%clk 0:02:54.4]} 9... a6
{[%clk 0:02:51.7]} 10. O-O {[%clk 0:02:54.2]} 10... Bd6 {[%clk 0:02:49.5]} 11.
f3 {[%clk 0:02:54.4]} 11... c5 {[%clk 0:02:49.3]} 12. Kh1 {[%clk 0:02:54.7]}
12... b5 {[%clk 0:02:47.1]} 13. a3 {[%clk 0:02:54.9]} 13... Bb7 {[%clk
0:02:46.3]} 14. Bb1 {[%clk 0:02:55.2]} 14... Qb6 {[%clk 0:02:43.8]} 15. Ba2
{[%clk 0:02:53.3]} 15... Rac8 {[%clk 0:02:36.3]} 16. Bb1 {[%clk 0:02:43.9]}
16... a5 {[%clk 0:02:30.4]} 17. Bf5 {[%clk 0:02:43.3]} 17... Rc7 {[%clk
0:02:24.3]} 18. a4 {[%clk 0:02:41.4]} 18... b4 {[%clk 0:01:55.2]} 19. Nb5 {[%clk
0:02:40.8]} 19... c4 {[%clk 0:01:55.8]} 20. Nxc7 {[%clk 0:02:40.6]} 20... Bxc7
{[%clk 0:01:47.3]} 21. Re1 {[%clk 0:02:30.2]} 21... Qd6 {[%clk 0:01:42.6]} 22.
Ng3 {[%clk 0:02:27.9]} 22... Nb6 {[%clk 0:00:32.1]} 23. Nf1 {[%clk 0:02:16]}
23... g6 {[%clk 0:00:28.8]} 24. Bh3 {[%clk 0:02:15.5]} 24... h5 {[%clk
0:00:27.1]} 25. Re2 {[%clk 0:02:14.1]} 25... Nh7 {[%clk 0:00:22.8]} 26. Be1
{[%clk 0:02:14]} 26... Ng5 {[%clk 0:00:20.3]} 27. Bg3 {[%clk 0:02:14.2]} 27...
Qe7 {[%clk 0:00:17.5]} 28. Bxc7 {[%clk 0:02:15.1]} 28... Qxc7 {[%clk 0:00:16.6]}
29. b3 {[%clk 0:02:09.1]} 29... Nxh3 {[%clk 0:00:12.7]} 30. gxh3 {[%clk
0:02:10]} 30... Bc8 {[%clk 0:00:13.6]} 31. Nd2 {[%clk 0:02:09.4]} 31... c3
{[%clk 0:00:08]} 32. Nb1 {[%clk 0:02:05.5]} 1-0

[Event "*** Titled Tuesday Blitz"]
[Site "Chess.com"]
[Date "2020.04.21"]
[Round "7"]
[White "Nellichka"]
[Black "Nikolaj_6"]
[Result "0-1"]
[WhiteElo "2084"]
[BlackElo "2583"]
[TimeControl "180+1"]
[EndTime "11:20:27 PDT"]
[Termination "Nikolaj_6 won by resignation"]

1. d4 {[%clk 0:03:00.9]} 1... Nf6 {[%clk 0:02:59.6]} 2. c4 {[%clk 0:03:00.2]}
2... e6 {[%clk 0:02:59.2]} 3. Nc3 {[%clk 0:02:59]} 3... c5 {[%clk 0:02:56.8]} 4.
d5 {[%clk 0:02:57.7]} 4... exd5 {[%clk 0:02:54.9]} 5. cxd5 {[%clk 0:02:57.2]}
5... d6 {[%clk 0:02:55]} 6. e4 {[%clk 0:02:56.3]} 6... g6 {[%clk 0:02:54.2]} 7.
Bg5 {[%clk 0:02:55.2]} 7... Bg7 {[%clk 0:02:52.1]} 8. Nf3 {[%clk 0:02:54.5]}
8... O-O {[%clk 0:02:50.6]} 9. Nd2 {[%clk 0:02:50]} 9... a6 {[%clk 0:02:47.5]}
10. a4 {[%clk 0:02:48.6]} 10... Nbd7 {[%clk 0:02:46.4]} 11. Be2 {[%clk 0:02:48]}
11... Re8 {[%clk 0:02:46]} 12. O-O {[%clk 0:02:46.9]} 12... h6 {[%clk 0:02:45]}
13. Bh4 {[%clk 0:02:44.2]} 13... g5 {[%clk 0:02:44.6]} 14. Bg3 {[%clk 0:02:43]}
14... Ne5 {[%clk 0:02:44.8]} 15. f3 {[%clk 0:02:38.3]} 15... Nh5 {[%clk
0:02:41.6]} 16. f4 {[%clk 0:02:23.8]} 16... Nxf4 {[%clk 0:02:38.2]} 17. Bxf4
{[%clk 0:02:22.2]} 17... gxf4 {[%clk 0:02:38.3]} 18. Rxf4 {[%clk 0:02:21.7]}
18... Ng6 {[%clk 0:02:28.8]} 19. Rf1 {[%clk 0:02:16.4]} 19... Qg5 {[%clk
0:02:24.9]} 20. Nf3 {[%clk 0:01:53.2]} 20... Qe3+ {[%clk 0:02:21.8]} 21. Kh1
{[%clk 0:01:51.5]} 21... Bxc3 {[%clk 0:02:17.3]} 22. Ra3 {[%clk 0:01:46.9]}
22... Rxe4 {[%clk 0:02:07.3]} 23. Bd3 {[%clk 0:01:35.7]} 23... Bxb2 {[%clk
0:01:56.2]} 24. Rb3 {[%clk 0:01:21]} 24... Rb4 {[%clk 0:01:54.3]} 25. Re1 {[%clk
0:01:15.3]} 25... Qf4 {[%clk 0:01:48.9]} 26. Bxg6 {[%clk 0:01:11.1]} 26... fxg6
{[%clk 0:01:42.9]} 27. Qc2 {[%clk 0:01:07.5]} 27... Bg7 {[%clk 0:01:16.8]} 28.
Rxb4 {[%clk 0:01:03.1]} 28... cxb4 {[%clk 0:01:12.9]} 29. Qxg6 {[%clk
0:01:01.3]} 29... Bf5 {[%clk 0:01:09.1]} 30. Re8+ {[%clk 0:00:56.4]} 30... Rxe8
{[%clk 0:01:08.2]} 31. Qxe8+ {[%clk 0:00:55.4]} 31... Kh7 {[%clk 0:01:07]} 32.
h3 {[%clk 0:00:54]} 32... b3 {[%clk 0:01:02]} 0-1

[Event "*** Titled Tuesday Blitz"]
[Site "Chess.com"]
[Date "2020.04.21"]
[Round "7"]
[White "ChrisTool2"]
[Black "Kimster98"]
[Result "1/2-1/2"]
[WhiteElo "2408"]
[BlackElo "2537"]
[TimeControl "180+1"]
[EndTime "11:20:29 PDT"]
[Termination "Game drawn by agreement"]

1. e4 {[%clk 0:03:00.9]} 1... e5 {[%clk 0:02:58.4]} 2. Nf3 {[%clk 0:02:59.8]}
2... Nc6 {[%clk 0:02:57]} 3. Bb5 {[%clk 0:02:54.6]} 3... Nf6 {[%clk 0:02:57.3]}
4. O-O {[%clk 0:02:48.3]} 4... Nxe4 {[%clk 0:02:54.7]} 5. d4 {[%clk 0:02:47.4]}
5... Nd6 {[%clk 0:02:55.3]} 6. dxe5 {[%clk 0:02:44.3]} 6... Nxb5 {[%clk
0:02:55.2]} 7. a4 {[%clk 0:02:43.7]} 7... Nbd4 {[%clk 0:02:55.5]} 8. Nxd4 {[%clk
0:02:42.9]} 8... Nxd4 {[%clk 0:02:41.3]} 9. Qxd4 {[%clk 0:02:43.8]} 9... d5
{[%clk 0:02:42]} 10. exd6 {[%clk 0:02:40.1]} 10... Qxd6 {[%clk 0:02:41.8]} 11.
Qe3+ {[%clk 0:02:37.9]} 11... Be7 {[%clk 0:02:38.1]} 12. Nc3 {[%clk 0:02:26.7]}
12... Be6 {[%clk 0:02:33.8]} 13. Nb5 {[%clk 0:02:07.2]} 13... Qc6 {[%clk
0:02:14.7]} 14. Qg3 {[%clk 0:01:43.3]} 14... O-O {[%clk 0:01:45.1]} 15. Qxc7
{[%clk 0:01:32.4]} 15... Bd8 {[%clk 0:01:28.1]} 16. Qxc6 {[%clk 0:01:25.6]}
16... bxc6 {[%clk 0:01:29]} 17. Nd4 {[%clk 0:01:16.9]} 17... Bd5 {[%clk
0:01:28.9]} 18. Be3 {[%clk 0:01:10.5]} 18... Bf6 {[%clk 0:01:25.3]} 19. Rab1
{[%clk 0:00:56.2]} 19... Bxd4 {[%clk 0:01:22.8]} 20. Bxd4 {[%clk 0:00:55.4]}
20... a6 {[%clk 0:01:23]} 21. Rfe1 {[%clk 0:00:45.9]} 21... Rfe8 {[%clk
0:01:21.2]} 22. b3 {[%clk 0:00:29.7]} 22... f6 {[%clk 0:01:13.9]} 23. f3 {[%clk
0:00:26.7]} 23... Kf7 {[%clk 0:01:04.1]} 24. Kf2 {[%clk 0:00:26.3]} 24... Rxe1
{[%clk 0:01:03.9]} 25. Rxe1 {[%clk 0:00:25.7]} 25... Re8 {[%clk 0:01:04.8]} 26.
Rxe8 {[%clk 0:00:19.6]} 26... Kxe8 {[%clk 0:01:05.7]} 27. Ke3 {[%clk 0:00:19.1]}
1/2-1/2

[Event "*** Titled Tuesday Blitz"]
[Site "Chess.com"]
[Date "2020.04.21"]
[Round "7"]
[White "Hippotaner"]
[Black "powermove"]
[Result "1-0"]
[WhiteElo "2225"]
[BlackElo "1597"]
[TimeControl "180+1"]
[EndTime "11:20:29 PDT"]
[Termination "Hippotaner won by resignation"]

1. e4 {[%clk 0:03:00.9]} 1... e5 {[%clk 0:02:59.1]} 2. Nf3 {[%clk 0:02:57.9]}
2... Nc6 {[%clk 0:02:58.6]} 3. Bc4 {[%clk 0:02:56.3]} 3... Nf6 {[%clk 0:02:57]}
4. d3 {[%clk 0:02:52.2]} 4... Bc5 {[%clk 0:02:56.2]} 5. O-O {[%clk 0:02:51]}
5... d6 {[%clk 0:02:55.6]} 6. a4 {[%clk 0:02:45.7]} 6... a6 {[%clk 0:02:54.4]}
7. c3 {[%clk 0:02:45.9]} 7... Ba7 {[%clk 0:02:52.8]} 8. Na3 {[%clk 0:02:44.7]}
8... O-O {[%clk 0:02:51.4]} 9. Nc2 {[%clk 0:02:32.8]} 9... h6 {[%clk 0:02:50.5]}
10. Be3 {[%clk 0:02:28]} 10... Ne7 {[%clk 0:02:48.9]} 11. Bxa7 {[%clk
0:02:26.8]} 11... Rxa7 {[%clk 0:02:48.2]} 12. Re1 {[%clk 0:02:18.8]} 12... Ng6
{[%clk 0:02:46.8]} 13. d4 {[%clk 0:02:11.3]} 13... Qe7 {[%clk 0:02:44.2]} 14.
dxe5 {[%clk 0:02:03.3]} 14... dxe5 {[%clk 0:02:43.1]} 15. Nb4 {[%clk 0:02:03.5]}
15... c6 {[%clk 0:02:38.9]} 16. Nd3 {[%clk 0:01:58.9]} 16... Nh5 {[%clk
0:02:18.4]} 17. Qb3 {[%clk 0:01:42.6]} 17... Bg4 {[%clk 0:02:07.4]} 18. Nd2
{[%clk 0:01:38.4]} 18... Rd8 {[%clk 0:02:03.2]} 19. f3 {[%clk 0:01:36.8]} 19...
Bc8 {[%clk 0:01:56.3]} 20. Qc2 {[%clk 0:01:36.4]} 20... b5 {[%clk 0:01:50.5]}
21. axb5 {[%clk 0:01:35.6]} 21... cxb5 {[%clk 0:01:49.6]} 22. Bd5 {[%clk
0:01:35]} 22... Nf6 {[%clk 0:01:24.5]} 23. Nb4 {[%clk 0:01:25.7]} 23... Qc5+
{[%clk 0:01:15.9]} 24. Kh1 {[%clk 0:01:19.2]} 24... Nxd5 {[%clk 0:01:12.3]} 25.
exd5 {[%clk 0:01:18.4]} 25... Rd6 {[%clk 0:00:38.6]} 26. Ne4 {[%clk 0:01:16.8]}
26... Bf5 {[%clk 0:00:31.2]} 27. Nxc5 {[%clk 0:01:07.8]} 1-0

[Event "*** Titled Tuesday Blitz"]
[Site "Chess.com"]
[Date "2020.04.21"]
[Round "7"]
[White "Izoria123"]
[Black "D0wnpour"]
[Result "1-0"]
[WhiteElo "2785"]
[BlackElo "2602"]
[TimeControl "180+1"]
[EndTime "11:20:32 PDT"]
[Termination "Izoria123 won by checkmate"]

1. Nf3 {[%clk 0:03:00.9]} 1... c5 {[%clk 0:02:59.9]} 2. e4 {[%clk 0:03:00.6]}
2... e6 {[%clk 0:02:59.4]} 3. c3 {[%clk 0:03:00.2]} 3... d5 {[%clk 0:02:58.8]}
4. exd5 {[%clk 0:03:00.2]} 4... Qxd5 {[%clk 0:02:59.7]} 5. d4 {[%clk 0:03:00]}
5... Nf6 {[%clk 0:03:00.3]} 6. Be2 {[%clk 0:02:58.9]} 6... Be7 {[%clk
0:02:59.6]} 7. O-O {[%clk 0:02:58.6]} 7... O-O {[%clk 0:03:00.3]} 8. c4 {[%clk
0:02:57.7]} 8... Qd8 {[%clk 0:02:57.8]} 9. dxc5 {[%clk 0:02:58.2]} 9... Bxc5
{[%clk 0:02:57.5]} 10. Nc3 {[%clk 0:02:57.9]} 10... Nc6 {[%clk 0:02:56.1]} 11.
a3 {[%clk 0:02:57.1]} 11... b6 {[%clk 0:02:50.6]} 12. b4 {[%clk 0:02:56]} 12...
Be7 {[%clk 0:02:50.9]} 13. Bf4 {[%clk 0:02:56.3]} 13... Bb7 {[%clk 0:02:49.5]}
14. Qc1 {[%clk 0:02:46.8]} 14... Nh5 {[%clk 0:02:29.5]} 15. Rd1 {[%clk 0:02:45]}
15... Qc8 {[%clk 0:02:29.9]} 16. Be3 {[%clk 0:02:44.3]} 16... Rd8 {[%clk
0:02:10.8]} 17. Qc2 {[%clk 0:02:40.5]} 17... Nf6 {[%clk 0:01:57.8]} 18. h3
{[%clk 0:02:39.9]} 18... Qb8 {[%clk 0:01:45.9]} 19. Nb5 {[%clk 0:02:24.6]} 19...
a6 {[%clk 0:01:38.7]} 20. Nc3 {[%clk 0:02:22.3]} 20... Qc7 {[%clk 0:01:36.4]}
21. Na4 {[%clk 0:02:22.2]} 21... Rxd1+ {[%clk 0:01:04.3]} 22. Rxd1 {[%clk
0:02:23.1]} 22... Nd7 {[%clk 0:00:36.6]} 23. Rxd7 {[%clk 0:02:21.1]} 23... Qxd7
{[%clk 0:00:37.5]} 24. Nxb6 {[%clk 0:02:21.3]} 24... Qd8 {[%clk 0:00:38.4]} 25.
Nxa8 {[%clk 0:02:21.4]} 25... Qxa8 {[%clk 0:00:39.1]} 26. c5 {[%clk 0:02:19.2]}
26... Bf6 {[%clk 0:00:37.7]} 27. Bd3 {[%clk 0:02:13.4]} 27... g6 {[%clk
0:00:37.8]} 28. Be4 {[%clk 0:02:13.2]} 28... Kg7 {[%clk 0:00:22.8]} 29. Qd2
{[%clk 0:02:10.2]} 29... h5 {[%clk 0:00:17.3]} 30. Qd7 {[%clk 0:02:06]} 30... h4
{[%clk 0:00:09.6]} 31. Ng5 {[%clk 0:01:58]} 31... Bxg5 {[%clk 0:00:08.4]} 32.
Bxg5 {[%clk 0:01:58.9]} 32... Ne5 {[%clk 0:00:08.4]} 33. Qxb7 {[%clk 0:01:56.7]}
33... Qh8 {[%clk 0:00:06.8]} 34. Qe7 {[%clk 0:01:53.3]} 34... Nd7 {[%clk
0:00:05.8]} 35. Qxd7 {[%clk 0:01:52.7]} 35... Qh5 {[%clk 0:00:03.1]} 36. Qd4+
{[%clk 0:01:52.3]} 36... Kh7 {[%clk 0:00:02.5]} 37. Be3 {[%clk 0:01:51.2]} 37...
Qf3 {[%clk 0:00:01.7]} 38. Bxf3 {[%clk 0:01:51]} 38... e5 {[%clk 0:00:01.1]} 39.
Qxe5 {[%clk 0:01:50.6]} 39... a5 {[%clk 0:00:02]} 40. Bd4 {[%clk 0:01:51.2]}
40... axb4 {[%clk 0:00:02.9]} 41. Qg7# {[%clk 0:01:51.4]} 1-0